bitfinex-derivatives/quotes_SOLF0:USTF0_20251223
["timestamp","ask_amount","ask_price","bid_price","bid_amount"]
[1766460257051,4.85,125.57,125.52,5.0]
[1766460257853,0.05954591,125.56,125.53,0.05730814]
[1766460260245,0.05954591,125.56,125.53,5.05730814]
[1766460262647,0.05954591,125.56,125.53,0.05730814]
[1766460263346,4.90954591,125.56,125.53,0.05730814]
[1766460265053,6.99380792,125.55,125.49,5.0]
[1766460265359,4.85,125.54,125.49,5.0]
[1766460266157,0.05919856,125.53,125.5,0.0578402]
[1766460266952,0.05919856,125.53,125.5,5.0578402]
[1766460268456,6.99380792,125.57,125.5,5.0578402]
[1766460269452,0.05450653,125.55,125.5,5.0578402]
[1766460272262,7.02831445,125.55,125.5,0.0578402]
[1766460274054,7.02831445,125.55,125.5,4.9778402]
[1766460281463,14.20131445,125.55,125.5,4.9778402]
[1766460281867,2.14380792,125.53,125.47,94.1]
[1766460282068,2.14380792,125.49,125.38,113.10528483]
[1766460282267,7.11380792,125.49,125.38,3.52979275]
[1766460282468,2.14380792,125.47,125.39,94.12]
[1766460282862,0.05151035,125.44,125.42,0.0524696]
[1766460283067,2.14380792,125.47,125.42,0.0524696]
[1766460283667,2.14380792,125.48,125.42,0.0524696]
[1766460283870,2.14380792,125.48,125.42,5.0224696]
[1766460284069,0.05697575,125.46,125.42,5.0224696]
[1766460286472,2.20078367,125.46,125.42,5.0224696]
[1766460287175,2.20078367,125.46,125.42,0.0524696]
[1766460287676,7.17078367,125.46,125.42,0.0524696]
[1766460288070,5.02697575,125.46,125.42,0.0524696]
[1766460288267,4.97,125.42,125.36,4.97]
[1766460289279,0.05738353,125.4,125.38,0.06066093]
[1766460291378,0.05738353,125.4,125.34,4.97]
[1766460291580,4.97,125.41,125.34,4.97]
[1766460292570,0.05599959,125.39,125.36,0.05316548]
[1766460292972,97.51782788,125.44,125.36,5.02316548]
[1766460293175,94.16,125.44,125.36,4.97]
[1766460293577,4.97,125.43,125.36,4.97]
[1766460294085,0.05500843,125.41,125.38,0.05373779]
[1766460294774,5.02500843,125.41,125.38,0.00373779]
[1766460296578,0.05500843,125.41,125.38,0.00373779]
[1766460296981,5.02500843,125.41,125.31,4.9]
[1766460297176,4.97,125.39,125.31,4.9]
[1766460298084,0.0572275,125.36,125.34,0.05137633]
[1766460299677,4.97,125.39,125.34,0.05137633]
[1766460300386,99.15,125.39,125.34,0.05137633]
[1766460300585,0.05737354,125.38,125.34,0.05137633]
[1766460300881,0.05737354,125.38,125.34,4.75137633]
[1766460301479,94.18,125.42,125.34,4.75137633]
[1766460301783,4.97,125.43,125.34,4.7]
[1766460302488,0.05315243,125.4,125.37,0.05496531]
[1766460304381,0.05315243,125.4,125.37,4.59496531]
[1766460304687,0.00315243,125.4,125.37,4.59496531]
[1766460304985,4.97,125.43,125.37,0.05496531]
[1766460305186,8.32782788,125.43,125.37,0.05496531]
[1766460305387,4.97,125.42,125.37,0.05496531]
[1766460305889,0.05801488,125.41,125.37,0.05496531]
[1766460306777,0.05801488,125.41,125.37,4.41496531]
[1766460306990,4.89,125.44,125.37,4.41496531]
[1766460307487,4.89,125.46,125.38,4.3]
[1766460308183,0.00365847,125.43,125.41,0.05610081]
[1766460314794,0.00365847,125.43,125.38,11.212]
[1766460315387,0.00365847,125.43,125.38,4.03]
[1766460315886,0.00365847,125.43,125.39,0.05070564]
[1766460320192,0.00365847,125.43,125.39,0.05070564]
[1766460321495,4.89365847,125.43,125.39,0.00070564]
[1766460322197,0.00365847,125.43,125.39,0.00070564]
[1766460322990,4.89,125.48,125.39,3.88070564]
[1766460323184,4.89,125.48,125.39,3.88]
[1766460323387,4.89,125.5,125.4,3.35782788]
[1766460324091,0.00279606,125.46,125.43,0.05874882]
[1766460327090,4.89,125.51,125.43,0.05874882]
[1766460327294,4.89,125.51,125.41,118.8779]
[1766460327996,0.00253622,125.47,125.45,0.05750874]
[1766460333712,4.61,125.52,125.45,0.05750874]
[1766460334712,0.05987698,125.5,125.45,0.05750874]
[1766460335712,98.73,125.54,125.45,0.05750874]
[1766460335908,4.57,125.54,125.43,94.2]
[1766460336611,4.57,125.54,125.43,101.3791]
[1766460336806,4.57,125.54,125.47,0.05339977]
[1766460340417,10.52952788,125.57,125.47,0.05339977]
[1766460340623,4.57,125.56,125.51,0.05355302]
[1766460344529,4.57,125.58,125.51,0.05355302]
[1766460344734,4.57,125.6,125.53,0.05824979]
[1766460344935,4.57,125.6,125.49,111.6222]
[1766460344936,4.57,125.6,125.55,0.05614194]
[1766460347636,4.57,125.59,125.5,7.175]
[1766460348640,0.06119969,125.56,125.53,0.05431126]
[1766460356347,4.63119969,125.56,125.53,0.05431126]
[1766460356541,4.63119969,125.56,125.53,0.00431126]
[1766460356736,6.77594851,125.56,125.53,0.00431126]
[1766460357136,4.63119969,125.56,125.53,0.00431126]
[1766460360743,6.77594851,125.56,125.53,0.00431126]
[1766460360944,4.57,125.53,125.48,101.3364]
[1766460361649,4.57,125.55,125.48,101.3364]
[1766460361948,0.05398054,125.53,125.5,0.05107407]
[1766460382466,4.79398054,125.53,125.5,0.05107407]
[1766460386465,7.1706,125.59,125.5,0.05107407]
[1766460386671,8.29213882,125.58,125.49,7.1759]
[1766460386967,6.14739,125.57,125.49,7.1759]
[1766460387562,0.06033695,125.54,125.49,7.1759]
[1766460388565,4.80033695,125.54,125.5,0.05527916]
[1766460405389,4.80033695,125.54,125.47,94.12]
[1766460406177,4.80033695,125.54,125.49,0.05752899]
[1766460410195,0.06033695,125.54,125.5,2.14474882]
[1766460411699,0.06033695,125.54,125.51,94.12]
[1766460411902,5.06033695,125.54,125.51,83.4]
[1766460412200,5.06033695,125.54,125.49,101.35332899]
[1766460413301,5.06033695,125.54,125.49,94.17752899]
[1766460413998,5.06033695,125.54,125.46,4.96]
[1766460414203,5.0,125.54,125.46,99.08]
[1766460415099,0.05966676,125.51,125.49,0.0556697]
[1766460415303,0.05849818,125.51,125.49,0.0556697]
[1766460419897,9.30458596,125.55,125.49,5.0156697]
[1766460420096,3.14,125.55,125.49,5.0156697]
[1766460421006,0.05436426,125.53,125.49,5.0156697]
[1766460424110,0.05436426,125.53,125.49,0.0556697]
[1766460426803,0.05436426,125.53,125.49,5.3356697]
[1766460431116,0.05436426,125.53,125.49,0.0556697]
[1766460431117,3.78436426,125.53,125.49,0.0556697]
[1766460432618,0.05436426,125.53,125.49,5.3356697]
[1766460433723,3.84,125.57,125.49,5.3356697]
[1766460434020,6.14274726,125.56,125.49,5.28]
[1766460434222,3.84,125.57,125.49,5.28]
[1766460434421,6.14513516,125.56,125.49,5.28]
[1766460434623,3.84,125.57,125.49,5.28]
[1766460434922,3.84,125.57,125.52,5.33690667]
[1766460434923,6.14520648,125.56,125.52,5.33690667]
[1766460435221,3.84,125.57,125.52,5.33690667]
[1766460435921,0.05337477,125.56,125.52,5.33690667]
[1766460444034,0.00337477,125.56,125.52,5.33690667]
[1766460449630,4.37,125.59,125.53,5.28]
[1766460450737,4.37,125.59,125.55,0.05413651]
[1766460471546,5.18,125.58,125.51,6.23]
[1766460471750,5.18,125.57,125.51,6.23]
[1766460472453,0.05527185,125.55,125.53,0.05249287]
[1766460481162,5.46527185,125.55,125.53,0.00249287]
[1766460485354,5.46527185,125.55,125.48,107.5065]
[1766460485559,5.45,125.53,125.48,107.5065]
[1766460486483,0.0543689,125.52,125.49,0.05795633]
[1766460487878,5.5843689,125.52,125.49,0.05795633]
[1766460488182,5.5843689,125.52,125.48,101.2765]
[1766460488183,5.48,125.51,125.46,13.5976]
[1766460488583,7.62527665,125.5,125.44,6.42]
[1766460489382,0.05747394,125.48,125.46,0.05804808]
[1766460489977,5.57747394,125.48,125.42,6.42]
[1766460490974,7.72275059,125.48,125.44,0.05563119]
[1766460492672,5.5,125.47,125.44,0.05563119]
[1766460492980,7.60527665,125.46,125.4,100.54]
[1766460493884,0.05815665,125.44,125.42,0.05092637]
[1766460503791,0.05815665,125.44,125.4,6.42]
[1766460504794,0.05815665,125.44,125.41,0.05572602]
[1766460506197,5.69,125.49,125.42,6.42]
[1766460507185,0.06031917,125.47,125.44,0.05490158]
[1766460509200,0.06031917,125.47,125.44,6.47490158]
[1766460509392,0.00031917,125.47,125.44,6.47490158]
[1766460509890,5.8,125.51,125.44,6.47490158]
[1766460510093,5.8,125.51,125.45,6.42]
[1766460510992,0.05783441,125.49,125.47,0.05305513]
[1766460525196,6.12783441,125.49,125.45,6.42]
[1766460525397,6.12783441,125.49,125.43,6.51]
[1766460526408,6.12783441,125.49,125.45,0.06072946]
[1766460526801,8.27311106,125.49,125.45,0.06072946]
[1766460527002,6.09,125.48,125.45,0.06072946]
[1766460539819,0.05783441,125.49,125.45,6.57072946]
[1766460540522,6.30783441,125.49,125.45,0.06072946]
[1766460557038,0.05783441,125.49,125.45,6.76072946]
[1766460557644,6.46783441,125.49,125.45,6.76072946]
[1766460558247,6.46783441,125.49,125.45,0.06072946]
[1766460564453,0.05783441,125.49,125.45,6.76072946]
[1766460568851,6.47,125.51,125.45,6.76072946]
[1766460569860,0.05635143,125.49,125.45,6.76072946]
[1766460583271,6.59,125.53,125.45,6.76072946]
[1766460583569,12.74419557,125.52,125.45,6.7]
[1766460583760,6.59,125.52,125.45,6.7]
[1766460584264,0.05576917,125.5,125.47,0.05115819]
[1766460599678,0.05576917,125.5,125.47,7.28115819]
[1766460600372,6.59,125.52,125.47,7.28115819]
[1766460601385,0.05571112,125.51,125.47,7.28115819]
[1766460604996,6.64571112,125.51,125.47,0.05115819]
[1766460605185,6.59,125.5,125.47,0.00115819]
[1766460607211,6.76,125.48,125.47,0.00115819]
[1766460607607,6.76,125.48,125.42,101.43]
[1766460608499,0.05124885,125.46,125.44,0.05092704]
[1766460609508,6.77124885,125.46,125.44,0.00092704]
[1766460610105,6.77124885,125.46,125.4,7.29]
[1766460610303,6.73,125.44,125.39,94.14]
[1766460611103,0.05216001,125.43,125.4,0.05810678]
[1766460613506,6.79216001,125.43,125.4,0.05810678]
[1766460615308,0.05216001,125.43,125.4,7.34810678]
[1766460615611,0.00216001,125.43,125.4,9.49484931]
[1766460616510,0.00216001,125.43,125.41,7.29]
[1766460616809,6.8,125.49,125.42,9.43674253]
[1766460617004,6.8,125.49,125.43,7.29]
[1766460617313,6.81,125.53,125.47,7.29]
[1766460617606,0.05565157,125.51,125.49,0.05913075]
[1766460618799,6.82,125.55,125.49,0.05913075]
[1766460620112,0.05620813,125.53,125.49,0.05913075]
[1766460625227,6.9,125.57,125.49,7.34913075]
[1766460625412,2.79330759,125.58,125.51,7.29]
[1766460625612,9.74330759,125.58,125.51,7.29]
[1766460626420,0.04713843,125.56,125.53,0.0545214]
[1766460637724,9.74330759,125.58,125.53,6.9545214]
[1766460637930,6.83,125.6,125.53,6.9545214]
[1766460638117,6.83,125.62,125.53,6.9]
[1766460638518,6.83,125.62,125.54,6.9]
[1766460638716,6.83,125.62,125.57,0.05982528]
[1766460638921,6.83,125.57,125.5,6.9]
[1766460639115,6.83,125.57,125.51,14.0748]
[1766460639317,6.83,125.57,125.52,6.9]
[1766460639921,0.05543906,125.56,125.53,0.06003634]
[1766460640123,0.05543906,125.56,125.53,6.96003634]
[1766460643031,6.83,125.59,125.53,6.96003634]
[1766460643333,8.97674253,125.61,125.54,6.9]
[1766460644034,8.97674253,125.61,125.56,0.0597019]
[1766460644736,6.83,125.61,125.56,0.0597019]
[1766460645534,6.83,125.61,125.56,6.9597019]
[1766460649637,6.83,125.61,125.56,0.0597019]
[1766460649936,8.97674253,125.61,125.56,0.0597019]
[1766460650638,6.83,125.6,125.56,0.0597019]
[1766460651638,2.14674253,125.59,125.52,101.0]
[1766460651941,6.83,125.58,125.52,101.0]
[1766460652342,6.83,125.56,125.49,6.9]
[1766460652542,6.83,125.56,125.51,0.05267698]
[1766460652740,0.05617157,125.54,125.51,0.05267698]
[1766460653940,6.88617157,125.54,125.51,0.05267698]
[1766460656834,0.05617157,125.54,125.51,0.05267698]
[1766460660243,6.83,125.58,125.51,6.95267698]
[1766460660438,6.83,125.58,125.51,6.9]
[1766460661244,6.83,125.58,125.53,0.05400143]
[1766460663535,6.83,125.6,125.53,6.95400143]
[1766460663732,6.83,125.6,125.55,0.05592754]
[1766460664750,12.99176899,125.59,125.55,0.05592754]
[1766460665041,6.83,125.59,125.55,0.05592754]
[1766460665243,17.35146196,125.61,125.55,0.05592754]
[1766460665443,12.99310415,125.6,125.55,0.05592754]
[1766460665744,12.99310415,125.59,125.55,0.05592754]
[1766460665945,6.83,125.59,125.55,0.05592754]
[1766460667040,7.08,125.58,125.49,7.01]
[1766460667241,7.08,125.56,125.49,7.01]
[1766460668147,0.05841738,125.54,125.51,0.0608538]
[1766460671245,7.14841738,125.54,125.46,7.01]
[1766460671444,7.09,125.54,125.46,7.01]
[1766460671838,7.04,125.52,125.44,7.01]
[1766460672042,7.04,125.5,125.44,7.01]
[1766460672243,0.05289691,125.48,125.46,0.05470473]
[1766460673744,0.00289691,125.48,125.46,0.05470473]
[1766460675857,7.04,125.52,125.46,0.05470473]
[1766460676858,0.05983146,125.5,125.46,0.05470473]
[1766460679956,7.15983146,125.5,125.46,0.00470473]
[1766460683666,0.05983146,125.5,125.46,7.01470473]
[1766460697257,0.05983146,125.5,125.46,0.00470473]
[1766460697258,6.86983146,125.5,125.46,0.00470473]
[1766460700261,0.05983146,125.5,125.46,0.00470473]
[1766460703870,6.86983146,125.5,125.46,0.00470473]
[1766460704674,6.81,125.49,125.42,7.15]
[1766460705772,0.06001113,125.47,125.44,0.06138761]
[1766460709275,6.87001113,125.47,125.44,0.00138761]
[1766460717980,6.87001113,125.47,125.44,7.15138761]
[1766460717981,0.06001113,125.47,125.44,7.15138761]
[1766460723193,13.9853,125.51,125.44,7.15138761]
[1766460723490,16.13179216,125.53,125.44,7.15138761]
[1766460723789,12.97398273,125.52,125.44,7.15]
[1766460723989,6.81,125.52,125.44,7.15]
[1766460724183,0.05027904,125.49,125.47,0.05729047]
[1766460744008,0.00027904,125.49,125.47,7.38729047]
[1766460755614,0.00027904,125.49,125.42,7.1798]
[1766460755815,9.0379712,125.49,125.4,103.48859216]
[1766460756016,9.03769216,125.49,125.4,101.3409]
[1766460756415,9.03769216,125.49,125.4,103.48859216]
[1766460756621,0.05047005,125.46,125.4,103.48859216]
[1766460756824,0.00047005,125.46,125.43,0.05927976]
[1766460757724,0.00047005,125.46,125.44,6.83]
[1766460758214,7.1758,125.5,125.44,6.83]
[1766460759225,0.06113916,125.48,125.46,0.05145173]
[1766460762829,0.00113916,125.48,125.46,6.73145173]
[1766460763132,8.72769216,125.51,125.46,6.73145173]
[1766460764025,0.02217584,125.5,125.46,6.73145173]
[1766460764630,6.75217584,125.5,125.46,0.05145173]
[1766460769139,0.02217584,125.5,125.46,6.73145173]
[1766460778839,6.75217584,125.5,125.46,0.05145173]
[1766460779835,8.899868,125.5,125.46,0.05145173]
[1766460780034,6.73,125.49,125.46,0.05145173]
[1766460780944,0.02217584,125.5,125.46,0.05145173]
[1766460780945,13.92797584,125.5,125.46,0.05145173]
[1766460782141,6.75217584,125.5,125.46,0.05145173]
[1766460782347,0.02217584,125.5,125.46,6.73145173]
[1766460790451,0.00217584,125.5,125.46,6.73145173]
[1766460792657,6.57,125.57,125.47,6.63]
[1766460792952,6.57,125.59,125.5,6.63]
[1766460793156,6.07829609,125.58,125.5,6.63]
[1766460793470,100.71,125.63,125.52,6.63]
[1766460793645,100.71,125.63,125.57,6.63]
[1766460794055,100.71,125.63,125.59,0.05796363]
[1766460794858,6.57,125.62,125.55,6.63]
[1766460795163,6.57,125.61,125.55,6.63]
[1766460795855,0.05306256,125.59,125.57,0.05045254]
[1766460796356,0.05306256,125.59,125.51,111.6091]
[1766460796357,0.05306256,125.59,125.53,6.63]
[1766460796549,6.57,125.61,125.53,6.63]
[1766460797460,0.05349846,125.58,125.56,0.05082264]
[1766460798056,6.57,125.61,125.56,0.05082264]
[1766460798257,6.57,125.61,125.56,6.68082264]
[1766460799062,0.05491771,125.6,125.56,6.68082264]
[1766460803557,0.00491771,125.6,125.56,6.68082264]
[1766460803764,6.57,125.65,125.58,6.63]
[1766460804664,6.57,125.65,125.6,0.05965653]
[1766460809461,6.57,125.65,125.6,6.68965653]
[1766460810373,6.57,125.65,125.6,0.05965653]
[1766460827482,13.7373,125.65,125.57,6.36]
[1766460827692,13.7373,125.65,125.55,7.1725]
[1766460827693,6.57,125.63,125.55,6.36]
[1766460827989,9.92521032,125.63,125.55,6.36]
[1766460828183,6.57,125.62,125.53,6.36]
[1766460828584,0.05210204,125.59,125.56,0.0522889]
[1766460831590,6.62210204,125.59,125.56,0.0522889]
[1766460841391,0.05210204,125.59,125.56,6.4122889]
[1766460842199,6.57,125.64,125.56,6.4122889]
[1766460842497,6.57,125.64,125.56,6.36]
[1766460843097,6.57,125.64,125.59,0.05532907]
[1766460851302,8.67234982,125.66,125.59,6.67532907]
[1766460851502,6.53,125.65,125.61,0.05760401]
[1766460852706,8.67234982,125.65,125.61,0.05760401]
[1766460852910,6.53,125.63,125.56,8.76234982]
[1766460853108,6.53,125.63,125.57,6.62]
[1766460853703,2.14234982,125.64,125.57,6.62]
[1766460853904,0.05335242,125.62,125.59,6.67295304]
[1766460856117,0.00335242,125.62,125.59,6.67295304]
[1766460861921,0.00335242,125.62,125.59,0.05295304]
[1766460864312,0.00335242,125.62,125.59,6.53295304]
[1766460865419,6.53,125.64,125.59,6.53295304]
[1766460865607,2.14234982,125.65,125.59,6.53295304]
[1766460865813,2.14234982,125.68,125.59,6.53295304]
[1766460866114,2.14234982,125.68,125.59,6.48]
[1766460866412,2.14234982,125.68,125.6,6.48]
[1766460866615,2.14234982,125.68,125.62,0.0539828]
[1766460867823,6.37,125.67,125.62,0.0539828]
[1766460874316,6.37,125.65,125.62,0.0039828]
[1766460875326,6.4238095,125.65,125.62,0.0039828]
[1766460876024,6.08,125.63,125.62,0.0039828]
[1766460876228,6.08,125.63,125.57,6.56]
[1766460877425,0.06108133,125.61,125.59,0.05288548]
[1766460886726,6.22108133,125.61,125.59,0.00288548]
[1766460887129,0.06108133,125.61,125.59,0.00288548]
[1766460888338,6.22108133,125.61,125.59,0.00288548]
[1766460889343,0.06108133,125.61,125.59,0.00288548]
[1766460898743,0.06108133,125.61,125.56,6.03]
[1766460898744,6.22108133,125.61,125.55,7.1725]
[1766460898941,6.22108133,125.61,125.55,13.2025]
[1766460899844,6.22108133,125.61,125.57,0.05521056]
[1766460913668,6.22108133,125.61,125.57,0.05521056]
[1766460930385,6.22108133,125.61,125.54,100.5]
[1766460931493,6.22108133,125.61,125.56,0.05425403]
[1766460933987,6.22108133,125.61,125.56,0.00425403]
[1766460954300,6.22108133,125.61,125.56,6.22425403]
[1766460957623,0.06108133,125.61,125.56,6.22425403]
[1766460958115,0.00108133,125.61,125.57,9.56884889]
[1766460958321,0.00108133,125.61,125.58,6.22]
[1766460958717,0.00108133,125.61,125.58,100.28]
[1766460963919,0.00108133,125.61,125.58,94.06]
[1766460964118,5.98108133,125.61,125.56,0.00425403]
[1766460969719,6.15,125.6,125.56,0.00425403]
[1766460971028,0.00108133,125.61,125.56,0.00425403]
[1766460990846,6.15,125.6,125.56,0.00425403]
[1766460991945,6.17,125.58,125.51,99.81]
[1766460993143,0.05850034,125.56,125.53,0.05835217]
[1766461005960,8.33327174,125.59,125.53,5.97835217]
[1766461006862,6.19,125.58,125.53,5.97835217]
[1766461007059,0.05059106,125.57,125.54,0.05783605]
[1766461017979,0.05059106,125.57,125.54,5.97783605]
[1766461018282,0.05059106,125.57,125.54,13.15083605]
[1766461023992,0.00059106,125.57,125.55,5.92]
[1766461035797,0.00059106,125.57,125.55,13.0924]
[1766461035990,0.00059106,125.57,125.56,5.77]
[1766461036194,5.99,125.62,125.56,5.77]
[1766461036396,5.99,125.62,125.57,99.85]
[1766461036895,5.99,125.64,125.58,5.77]
[1766461037190,5.99,125.64,125.6,0.05195289]
[1766461037191,0.05560136,125.62,125.6,0.05195289]
[1766461038894,5.99,125.66,125.6,5.82195289]
[1766461051209,5.99,125.66,125.61,5.41]
[1766461059821,5.92,125.68,125.61,5.41]
[1766461060113,5.92,125.68,125.63,0.05268417]
[1766461062115,5.92,125.68,125.63,0.00268417]
[1766461063111,5.92,125.66,125.63,0.00268417]
[1766461063508,5.92,125.66,125.59,5.66]
[1766461064508,5.97192951,125.64,125.61,0.05515734]
[1766461067124,5.97192951,125.64,125.57,5.66]
[1766461067418,5.92,125.64,125.57,5.66]
[1766461068219,0.05296229,125.62,125.59,0.06004258]
[1766461069820,0.05296229,125.62,125.56,99.7]
[1766461069821,5.97296229,125.62,125.56,99.7]
[1766461070214,5.97296229,125.62,125.56,94.04]
[1766461070914,5.97296229,125.62,125.58,0.0542662]
[1766461079422,0.05296229,125.62,125.58,5.7142662]
[1766461079622,5.97296229,125.62,125.58,0.0542662]
[1766461090229,0.05296229,125.62,125.58,5.4442662]
[1766461091439,0.00296229,125.62,125.58,5.4442662]
[1766461107338,2.80495457,125.7,125.63,5.39]
[1766461107538,5.34,125.76,125.67,5.39]
[1766461107850,5.34,125.78,125.7,5.39]
[1766461108042,5.34,125.78,125.72,5.39]
[1766461108445,0.05174855,125.76,125.74,0.05627021]
[1766461114634,5.38,125.75,125.7,5.39]
[1766461114835,5.38,125.77,125.7,5.39]
[1766461115642,0.05499318,125.75,125.72,0.05390096]
[1766461120548,5.24,125.84,125.75,5.13]
[1766461120752,5.24,125.84,125.77,5.13]
[1766461121651,0.0606871,125.82,125.79,0.06117668]
[1766461129258,5.3006871,125.82,125.79,0.06117668]
[1766461129960,0.0606871,125.82,125.79,0.06117668]
[1766461138065,0.0606871,125.82,125.79,5.19117668]
[1766461138963,0.0606871,125.82,125.79,0.06117668]
[1766461154685,0.0006871,125.82,125.79,5.53117668]
[1766461154897,5.29,125.9,125.81,5.47]
[1766461155182,5.29,125.95,125.86,5.47]
[1766461155386,5.29,125.94,125.88,5.47]
[1766461156086,0.0505942,125.92,125.9,0.05578623]
[1766461160686,0.0505942,125.92,125.85,121.79737048]
[1766461160687,5.3405942,125.92,125.85,5.47]
[1766461160893,5.3405942,125.92,125.83,99.35]
[1766461161079,5.29,125.92,125.83,99.35]
[1766461161485,8.62707048,125.91,125.83,99.35]
[1766461161792,0.05236348,125.88,125.86,0.05031492]
[1766461162785,0.00236348,125.88,125.86,0.05031492]
[1766461164388,0.00236348,125.88,125.86,5.31031492]
[1766461167790,0.00236348,125.88,125.86,0.05031492]
[1766461169287,0.00236348,125.88,125.86,0.00031492]
[1766461171492,5.03236348,125.88,125.86,0.00031492]
[1766461174193,5.03,125.87,125.79,5.26]
[1766461174394,5.03,125.86,125.79,5.26]
[1766461175095,0.05495494,125.84,125.81,0.05272856]
[1766461179788,0.05495494,125.84,125.81,5.11272856]
[1766461179992,0.00495494,125.84,125.81,5.11272856]
[1766461186400,0.00495494,125.84,125.81,98.99272856]
[1766461186597,0.00495494,125.84,125.82,5.06]
[1766461195611,0.00495494,125.84,125.82,12.217]
[1766461195907,5.32,125.91,125.83,5.06]
[1766461197003,0.05850487,125.88,125.86,0.05722889]
[1766461201324,5.32,125.97,125.9,5.06]
[1766461201515,5.32,125.99,125.91,5.06]
[1766461201716,5.32,125.97,125.88,5.06]
[1766461201909,5.32,125.97,125.89,5.06]
[1766461202309,5.32,125.97,125.92,0.05973724]
[1766461202709,5.32,125.99,125.92,5.11973724]
[1766461202914,5.32,125.99,125.92,5.06]
[1766461203117,5.32,125.99,125.94,0.05075292]
[1766461203712,5.32,125.99,125.94,0.00075292]
[1766461204723,5.32,125.97,125.94,0.00075292]
[1766461205022,5.32,125.97,125.88,98.92]
[1766461205227,3.33707048,125.96,125.88,5.06]
[1766461205528,5.32,125.95,125.88,5.06]
[1766461206123,0.05075292,125.93,125.9,0.05215495]
[1766461206824,5.31075292,125.93,125.84,4.9]
[1766461207125,5.26,125.92,125.84,4.9]
[1766461207915,0.05191295,125.89,125.87,0.05421574]
[1766461209221,0.05191295,125.89,125.84,4.9]
[1766461209423,5.31191295,125.89,125.82,98.74]
[1766461209721,5.31191295,125.89,125.83,4.9]
[1766461210326,5.31191295,125.89,125.85,0.05366344]
[1766461211124,5.31191295,125.89,125.82,93.84]
[1766461211419,5.31191295,125.89,125.82,98.74]
[1766461211925,7.44656125,125.89,125.84,0.05110704]
[1766461212226,5.26,125.88,125.84,0.05110704]
[1766461215724,2.18656125,125.89,125.84,0.05110704]
[1766461215934,0.05191295,125.89,125.84,4.95110704]
[1766461219429,0.00191295,125.89,125.84,4.95110704]
[1766461219640,0.00191295,125.89,125.85,4.9]
[1766461220124,0.00191295,125.89,125.85,12.0552]
[1766461220324,0.00191295,125.89,125.86,4.9]
[1766461221425,0.00191295,125.89,125.87,4.9]
[1766461221630,0.00191295,125.89,125.87,4.95017814]
[1766461222731,5.26,125.95,125.88,4.9]
[1766461223621,0.05513163,125.93,125.9,0.05797434]
[1766461226634,5.26,125.98,125.91,4.9]
[1766461226939,6.45964231,126.03,125.94,4.9]
[1766461227137,5.26,126.02,125.95,4.9]
[1766461227335,7.3946483,126.01,125.94,93.84]
[1766461227640,0.05357433,125.99,125.96,0.05206118]
[1766461232038,5.23357433,125.99,125.9,5.08]
[1766461232242,7.3146483,125.98,125.9,5.08]
[1766461233243,0.05899929,125.95,125.93,0.05587837]
[1766461242050,0.05899929,125.95,125.9,4.87]
[1766461242949,0.05899929,125.95,125.91,0.0529574]
[1766461245857,4.88899929,125.95,125.91,0.0029574]
[1766461246058,0.05899929,125.95,125.91,4.8729574]
[1766461246361,4.83,126.01,125.93,4.87]
[1766461247560,0.05775624,125.98,125.96,0.05463281]
[1766461248162,9.15499401,126.03,125.96,4.92463281]
[1766461249172,0.05581783,126.01,125.96,4.92463281]
[1766461250766,7.02046613,126.01,125.96,0.05463281]
[1766461253272,4.88581783,126.01,125.96,0.05463281]
[1766461253570,7.02046613,126.01,125.96,0.05463281]
[1766461256670,4.88581783,126.01,125.96,0.05463281]
[1766461256976,4.88581783,126.01,125.96,4.92463281]
[1766461256977,0.05581783,126.01,125.96,4.92463281]
[1766461263180,4.88581783,126.01,125.96,0.05463281]
[1766461264370,4.88581783,126.01,125.96,4.92463281]
[1766461264875,0.05581783,126.01,125.96,4.92463281]
[1766461267982,4.32499401,126.03,125.97,7.1484]
[1766461268182,4.32499401,126.03,125.98,4.72]
[1766461268978,0.05424048,126.02,125.99,0.05629151]
[1766461269188,3.449e-05,126.03,125.99,0.05629151]